bitfinex-derivatives/quotes_ETHF0:USTF0_20250123
["timestamp","ask_amount","ask_price","bid_price","bid_amount"]
[1737614029668,3.2078,3222.0,3221.6,41.37135528]
[1737614029874,3.2078,3222.0,3221.9,0.62109]
[1737614030177,0.62106,3222.1,3221.6,41.37135528]
[1737614030376,0.62106,3222.1,3222.0,0.62107]
[1737614030571,0.5739,3222.2,3222.1,0.62105]
[1737614030777,1.03694572,3222.3,3222.2,0.62103]
[1737614031279,0.00465528,3222.3,3222.2,0.62103]
[1737614031471,0.00465528,3222.3,3222.1,0.62104]
[1737614031674,0.62566528,3222.3,3222.2,1.1434]
[1737614031875,0.00465528,3222.3,3222.2,1.1434]
[1737614032078,0.00465528,3222.3,3222.2,41.9434]
[1737614032875,0.00465528,3222.3,3222.2,42.56443]
[1737614033570,0.00465528,3222.3,3222.2,41.9434]
[1737614034883,0.62566528,3222.3,3222.2,41.9434]
[1737614038085,0.00465528,3222.3,3222.2,42.56443]
[1737614043180,0.00465528,3222.3,3222.2,43.16533]
[1737614050085,3.5576162,3223.0,3222.9,0.62089]
[1737614050289,0.62081,3223.4,3223.2,0.62082]
[1737614050592,2.35198,3223.5,3223.4,0.6208]
[1737614050982,0.6208,3223.4,3223.3,40.8]
[1737614051695,8.84972382,3223.4,3222.7,3.82873]
[1737614051894,8.84972382,3223.4,3222.7,3.2078]
[1737614051895,2.4395162,3223.1,3222.7,3.2078]
[1737614052091,2.4395162,3223.1,3222.4,0.6027]
[1737614052284,0.62095,3222.6,3222.5,40.8]
[1737614056087,1.1545,3222.7,3222.5,41.42096]
[1737614056088,1.77545,3222.7,3222.5,41.42096]
[1737614056399,2.41596042,3222.9,3222.8,0.62091]
[1737614057092,2.41596042,3222.9,3222.8,41.42091]
[1737614061297,0.62082,3223.3,3223.2,0.62084]
[1737614061494,0.62082,3223.3,3223.2,3.82864]
[1737614061695,2.4395162,3223.4,3223.2,3.82864]
[1737614061897,3.0603262,3223.4,3223.2,3.82864]
[1737614062903,3.0603262,3223.4,3223.3,0.62082]
[1737614064100,2.4395162,3223.4,3223.2,3.2078]
[1737614064295,0.62082,3223.3,3223.2,3.82863]
[1737614064493,3.0603162,3223.4,3223.2,3.82863]
[1737614064693,0.62082,3223.3,3223.2,0.62083]
[1737614065005,3.0603262,3223.4,3223.2,0.62083]
[1737614065904,3.0603262,3223.4,3222.8,44.0078]
[1737614066208,3.0603262,3223.4,3223.2,0.62083]
[1737614066409,0.62085,3223.2,3223.0,0.62087]
[1737614066599,2.98666042,3223.6,3223.0,0.62087]
[1737614066600,4.1727662,3223.1,3223.0,0.62087]
[1737614066908,4.1727662,3223.1,3222.8,44.0078]
[1737614067099,0.5535,3223.0,3222.8,44.0078]
[1737614067505,0.5535,3223.0,3222.9,0.62088]
[1737614070904,0.62089,3222.9,3222.8,44.0078]
[1737614071105,1.17399,3222.9,3222.8,44.0078]
[1737614075599,1.22304084,3222.9,3222.8,44.0078]
[1737614076215,1.17399,3222.9,3222.8,44.0078]
[1737614076415,1.63360726,3222.9,3222.8,44.0078]
[1737614076619,1.22304005,3222.9,3222.8,44.0078]
[1737614077007,1.63359318,3222.9,3222.8,44.0078]
[1737614077207,1.22304005,3222.9,3222.8,44.0078]
[1737614077614,5.28409147,3222.9,3222.8,44.0078]
[1737614077817,8.90242412,3222.9,3222.8,40.8]
[1737614078117,11.31838454,3222.9,3222.8,40.8]
[1737614078909,11.73925935,3222.9,3222.8,40.8]
[1737614079512,11.31838454,3222.9,3222.8,40.8]
[1737614080017,11.73919403,3222.9,3222.8,40.8]
[1737614080315,11.31838454,3222.9,3222.8,40.8]
[1737614082113,11.7390591,3222.9,3222.8,40.8]
[1737614082319,11.31838454,3222.9,3222.8,40.8]
[1737614082516,11.7390212,3222.9,3222.8,40.8]
[1737614084316,11.31838722,3222.9,3222.8,40.8]
[1737614085314,11.3183873,3222.9,3222.8,40.8]
[1737614087319,11.26933449,3222.9,3222.8,40.8]
[1737614087618,11.31838751,3222.9,3222.8,40.8]
[1737614088623,10.69749751,3222.9,3222.2,0.62102]
[1737614088816,0.62097,3222.5,3222.2,0.62102]
[1737614089315,1.21137,3222.5,3222.3,40.8]
[1737614089620,1.21137,3222.5,3222.3,41.42101]
[1737614089815,1.21137,3222.5,3222.4,0.5874]
[1737614091823,2.36855745,3222.5,3222.4,0.5874]
[1737614093014,1.77815745,3222.5,3222.4,0.5874]
[1737614096325,1.77815745,3222.5,3222.4,1.1806]
[1737614099620,1.15718745,3222.5,3222.4,1.80159]
[1737614099816,1.77815745,3222.5,3222.4,1.80159]
[1737614100021,1.77815745,3222.5,3222.4,1.1806]
[1737614100425,1.77815745,3222.5,3222.4,1.80159]
[1737614100729,1.15718745,3222.5,3222.4,1.80159]
[1737614101421,0.62099,3222.4,3222.3,40.8]
[1737614101621,0.62099,3222.4,3222.3,41.42101]
[1737614102519,1.15718745,3222.5,3222.3,41.42101]
[1737614102720,1.77816745,3222.5,3222.3,41.42101]
[1737614103029,1.77816745,3222.5,3222.4,0.62099]
[1737614103227,1.15718745,3222.5,3222.3,40.8]
[1737614103426,1.15718745,3222.5,3222.3,41.421]
[1737614103733,1.77817745,3222.5,3222.3,41.421]
[1737614105022,1.15718745,3222.5,3222.3,40.8]
[1737614105221,1.15718745,3222.5,3222.3,41.421]
[1737614105222,1.77816745,3222.5,3222.3,41.421]
[1737614105622,1.77816745,3222.5,3222.4,0.62099]
[1737614106224,0.62099,3222.4,3222.3,41.421]
[1737614106423,1.15718745,3222.5,3222.3,41.421]
[1737614106638,1.77816745,3222.5,3222.3,41.421]
[1737614107229,1.77816745,3222.5,3222.4,0.62099]
[1737614108432,1.15718745,3222.5,3222.4,0.62099]
[1737614108931,1.77815745,3222.5,3222.4,0.62099]
[1737614110532,1.77815745,3222.5,3222.3,40.8]
[1737614110732,0.62099,3222.4,3222.3,40.8]
[1737614110926,4.01479234,3222.4,3221.8,3.8289]
[1737614111121,1.77825745,3222.0,3221.8,3.8289]
[1737614111429,1.77825745,3222.0,3221.9,41.3545]
[1737614111827,1.15718745,3222.0,3221.9,41.97559]
[1737614112831,1.77825745,3222.0,3221.9,41.3545]
[1737614113227,2.9354449,3222.0,3221.9,41.3545]
[1737614113524,5.35140532,3222.0,3221.9,40.8]
[1737614113731,10.21551339,3222.0,3221.9,40.8]
[1737614114134,10.65890991,3222.0,3221.9,40.8]
[1737614114530,10.03783991,3222.0,3221.6,0.00465528]
[1737614114729,1.77830745,3221.7,3221.6,0.00465528]
[1737614115134,1.77830745,3221.7,3221.6,40.80465528]
[1737614117743,1.15718745,3221.7,3221.6,40.80465528]
[1737614118240,1.15718745,3221.7,3221.6,41.37945528]
[1737614120138,1.77830745,3221.7,3221.6,41.37945528]
[1737614120940,1.77830745,3221.7,3221.6,40.80465528]
[1737614122541,1.15718745,3221.7,3221.6,40.80465528]
[1737614122747,1.15718745,3221.7,3221.6,41.42579528]
[1737614125047,1.77830745,3221.7,3221.6,41.42579528]
[1737614125746,3.06688455,3221.7,3221.6,41.42579528]
[1737614129148,0.6211,3221.9,3221.7,0.62112]
[1737614129337,0.6211,3221.9,3221.8,0.555]
[1737614129850,2.44576455,3222.0,3221.8,0.555]
[1737614130051,0.62109,3221.9,3221.8,1.1761]
[1737614131744,2.44576455,3222.0,3221.8,0.555]
[1737614131942,0.62109,3221.9,3221.8,1.17609]
[1737614132846,0.62109,3221.9,3221.8,0.555]
[1737614133048,0.62109,3221.9,3221.8,1.17611]
[1737614133553,2.44576455,3222.0,3221.8,1.17611]
[1737614133850,0.00465528,3222.1,3222.0,0.62107]
[1737614134238,0.62571528,3222.1,3221.9,0.62107]
[1737614134439,2.44576455,3222.0,3221.9,0.62107]
[1737614135948,0.62109,3221.9,3221.8,0.555]
[1737614136148,1.16549,3221.9,3221.8,0.555]
[1737614136450,1.16549,3221.9,3221.7,0.5646]
[1737614136451,0.62111,3221.8,3221.7,0.5646]
[1737614136843,0.5444,3221.9,3221.6,40.80465528]
[1737614136844,0.62112,3221.7,3221.6,40.80465528]
[1737614137146,3.57408455,3221.7,3221.6,40.80465528]
[1737614140857,7.52940908,3221.7,3221.6,0.00465528]
[1737614141054,8.36253896,3221.7,3221.6,0.00465528]
[1737614141255,8.85505056,3221.7,3221.6,0.00465528]
[1737614141641,8.41160908,3221.7,3221.6,0.00465528]
[1737614142647,8.41161057,3221.7,3221.6,0.00465528]
[1737614144253,8.41161069,3221.7,3221.6,0.00465528]
[1737614147653,8.41161056,3221.7,3221.6,0.00465528]
[1737614149456,8.41161039,3221.7,3221.6,0.00465528]
[1737614150153,7.98982609,3221.7,3221.6,0.00465528]
[1737614150750,8.41126541,3221.7,3221.6,0.00465528]
[1737614151155,7.9898258,3221.7,3221.6,0.00465528]
[1737614152854,7.98982591,3221.7,3221.6,0.00465528]
[1737614155660,6.70206937,3221.7,3221.6,0.00465528]
[1737614155861,2.74674391,3221.7,3221.6,0.00465528]
[1737614156059,2.28632801,3221.7,3221.6,1.02705528]
[1737614157265,6.35371092,3221.7,3221.6,0.00465528]
[1737614157466,7.2351073,3221.7,3221.6,0.00465528]
[1737614157652,8.52354945,3221.7,3221.6,0.00465528]
[1737614161068,8.52355003,3221.7,3221.6,0.00465528]
[1737614162357,8.52355125,3221.7,3221.6,0.00465528]
[1737614162867,10.93951167,3221.7,3221.6,0.00465528]
[1737614164965,10.34887923,3221.7,3221.2,40.8]
[1737614165170,3.06768798,3221.3,3221.2,40.8]
[1737614165369,3.52770883,3221.3,3221.2,40.8]
[1737614165557,9.18182406,3221.3,3221.2,40.8]
[1737614165963,6.73537608,3221.3,3221.2,40.8]
[1737614166164,7.15714992,3221.3,3221.2,40.8]
[1737614166773,10.36494992,3221.3,3221.2,40.8]
[1737614168174,10.36494992,3221.3,3220.9,0.00465528]
[1737614168175,0.62129,3221.0,3220.9,0.00465528]
[1737614168372,2.49552121,3221.0,3220.6,0.5201]
[1737614168569,3.06779798,3220.7,3220.6,0.5201]
[1737614168870,10.37634269,3220.7,3220.6,0.5201]
[1737614169068,10.83638001,3220.7,3220.6,0.5201]
[1737614170165,6.27559798,3220.7,3220.6,0.5201]
[1737614170369,3.06779798,3220.7,3220.6,0.5201]
[1737614170673,2.44644798,3220.7,3220.6,0.5201]
[1737614170975,3.06776798,3220.7,3220.6,0.5201]
[1737614171173,2.44644798,3220.7,3220.6,0.5201]
[1737614171367,3.06777798,3220.7,3220.6,0.5201]
[1737614171566,2.44644798,3220.7,3220.6,0.5201]
[1737614171765,2.41596042,3220.9,3220.6,0.5201]
[1737614171978,2.41596042,3220.9,3220.8,0.62131]
[1737614175280,1.61886042,3220.9,3220.8,0.62131]
[1737614175468,1.08706042,3220.9,3220.8,0.62131]
[1737614176778,3.06764798,3221.4,3221.2,0.62123]
[1737614177076,3.06764798,3221.4,3221.3,41.8013]
[1737614178073,2.44644798,3221.4,3221.3,41.8013]
[1737614178278,2.44644798,3221.4,3221.3,42.42251]
[1737614179275,3.06763798,3221.4,3221.3,41.8013]
[1737614179482,3.06763798,3221.4,3221.3,42.42251]
[1737614180173,3.06763798,3221.4,3221.3,41.8013]
[1737614180678,0.62123,3221.2,3221.1,3.2078]
[1737614181068,0.62123,3221.2,3221.1,44.0078]
[1737614181271,1.12733,3221.2,3221.1,44.0078]
[1737614182184,1.17640978,3221.2,3221.1,40.8]
[1737614182486,0.62132,3220.8,3220.6,3.2078]
[1737614182687,0.62132,3220.7,3220.6,3.2078]
[1737614182980,0.62132,3220.7,3220.6,44.0078]
[1737614183178,2.44644798,3220.8,3220.6,44.0078]
[1737614183382,3.06776798,3220.8,3220.6,44.62913]
[1737614183883,3.06776798,3220.8,3220.6,44.0078]
[1737614184079,3.06776798,3220.8,3220.6,44.62913]
[1737614184279,2.44644798,3221.1,3220.6,44.0078]
[1737614184592,0.62128,3221.0,3220.8,0.62129]
[1737614185284,0.62128,3220.9,3220.8,0.62129]
[1737614185675,2.44644798,3221.1,3220.6,44.0078]
[1737614185882,0.6213,3220.9,3220.7,0.62131]
[1737614186082,0.6213,3220.9,3220.8,0.6213]
[1737614186282,2.44644798,3221.1,3220.6,44.0078]
[1737614186488,0.62132,3220.7,3220.6,44.62913]
[1737614186691,0.62132,3220.7,3220.6,44.0078]
[1737614186885,1.13522,3220.7,3220.6,44.0078]
[1737614190588,2.44644798,3221.1,3220.8,0.62129]
[1737614190787,0.62127,3221.0,3220.9,0.5248]
[1737614191886,3.06770798,3221.1,3220.9,1.14608]
[1737614192092,6.27544798,3221.4,3221.0,0.5211]
[1737614192292,6.15004798,3221.4,3221.0,0.5211]
[1737614192491,6.77124798,3221.4,3221.1,0.62124]
[1737614192685,3.56344798,3221.4,3221.2,0.62122]
[1737614192889,2.94224798,3221.4,3221.0,3.7289]
[1737614193089,2.94224798,3221.4,3221.3,40.8]
[1737614193395,2.94224798,3221.4,3221.3,41.42121]
[1737614193589,2.94224798,3221.4,3221.3,40.8]
[1737614194890,3.56343798,3221.4,3221.3,40.8]
[1737614195590,2.94224798,3221.4,3221.3,40.8]
[1737614195993,2.44644798,3221.4,3221.3,40.8]
[1737614196391,2.44644798,3221.4,3221.3,41.42121]
[1737614196690,2.44644798,3221.4,3221.3,40.8]
[1737614197892,3.06763798,3221.4,3221.3,40.8]
[1737614198094,2.44644798,3221.4,3221.3,40.8]
[1737614198792,0.62117,3221.5,3221.3,40.8]
[1737614199799,0.62117,3221.5,3221.4,0.5107]
[1737614200902,0.62116,3221.6,3221.4,0.5107]
[1737614201203,0.62116,3221.6,3221.5,0.512]
[1737614202497,0.62119,3221.4,3221.3,40.8]
[1737614203801,3.06763798,3221.4,3221.3,40.8]
[1737614210404,0.6213,3220.8,3220.5,0.491]
[1737614210714,3.06774798,3220.8,3220.4,0.4833]
[1737614211408,3.06774798,3220.8,3220.7,44.0078]
[1737614216307,3.06774798,3220.8,3220.7,40.8]
[1737614221613,8.14129006,3220.8,3220.7,40.8]
[1737614221816,8.55223016,3220.8,3220.7,40.8]
[1737614222015,8.14129006,3220.8,3220.7,40.8]
[1737614222216,5.14945456,3220.8,3220.7,40.8]
[1737614222417,0.4829,3220.9,3220.8,0.6213]
[1737614222619,0.4829,3220.9,3220.8,1.1335]
[1737614222918,0.4829,3220.9,3220.8,0.5122]
[1737614223120,1.10418,3220.9,3220.8,0.5122]
[1737614223314,0.4829,3220.9,3220.8,0.5122]
[1737614223713,1.10418,3220.9,3220.8,0.5122]
[1737614223914,0.6213,3220.8,3220.7,40.8]
[1737614224114,3.58354798,3220.8,3220.7,40.8]
[1737614228416,0.4829,3220.9,3220.7,40.8]
[1737614228922,0.4829,3220.9,3220.8,1.6475]
[1737614229312,1.10418,3220.9,3220.8,1.0262]
[1737614229510,0.4829,3220.9,3220.8,1.0262]
[1737614229715,1.10418,3220.9,3220.8,1.0262]
[1737614230827,0.4829,3220.9,3220.8,1.0262]
[1737614232222,3.06770798,3221.1,3220.8,1.0262]
[1737614232414,2.44644798,3221.4,3220.8,1.0262]
[1737614232614,0.62125,3221.1,3220.9,0.62127]
[1737614234627,0.62126,3221.1,3220.8,1.0262]
[1737614234922,0.62126,3221.1,3220.9,0.62128]
[1737614237631,1.15811792,3221.0,3220.9,0.62128]
[1737614238323,1.15811792,3221.2,3221.1,0.62124]
[1737614238630,1.77933792,3221.2,3221.1,0.62124]
[1737614238930,1.77933792,3221.2,3221.1,41.42124]
[1737614239722,1.12622,3221.3,3221.1,41.42124]
[1737614240133,1.12622,3221.3,3221.2,0.62122]
[1737614240324,1.12622,3221.3,3221.1,41.42123]
[1737614242731,1.12622,3221.3,3221.1,40.8]
[1737614242933,1.12622,3221.3,3221.1,41.42123]
[1737614243129,1.12622,3221.3,3221.1,40.8]
[1737614243329,1.12622,3221.3,3221.2,0.62122]
[1737614243834,2.44620227,3221.8,3221.1,40.8]
[1737614244035,0.62116,3221.6,3221.3,0.62119]
[1737614244236,0.62116,3221.6,3221.4,0.9956]
[1737614244427,2.44620227,3221.5,3221.4,0.9956]
[1737614244623,3.06737227,3221.5,3221.4,0.4841]
[1737614244823,3.06737227,3221.5,3221.4,41.2841]
[1737614247833,3.06737227,3221.5,3221.4,40.8]
[1737614248434,4.07197227,3221.5,3221.4,40.8]
[1737614250339,7.27977227,3221.5,3221.4,40.8]
[1737614252036,8.16099808,3221.5,3221.4,40.8]
[1737614252843,12.13753497,3221.5,3221.4,40.8]
[1737614253836,13.96257073,3221.5,3220.4,3.6925]
[1737614254037,3.06752227,3220.8,3220.5,0.62135]
[1737614254237,0.62136,3220.6,3220.4,3.7138]
[1737614254433,3.06756227,3220.5,3220.4,3.7138]
[1737614254935,3.06756227,3220.5,3220.4,44.5138]
[1737614255137,2.44620227,3220.5,3220.4,44.5138]
[1737614255930,3.06756227,3220.5,3220.4,44.5138]
[1737614256134,3.06756227,3220.5,3220.4,45.13518]
[1737614256739,3.06756227,3220.5,3220.4,44.0078]
[1737614259743,1.77993805,3220.5,3220.4,44.0078]
[1737614261437,1.77993805,3220.5,3220.4,40.8]
[1737614262743,1.77993805,3220.5,3220.4,41.42138]
[1737614262744,1.15857805,3220.5,3220.4,41.42138]
[1737614262944,1.15857805,3220.5,3220.4,41.2898]
[1737614263143,1.15857805,3220.5,3220.4,41.91118]
[1737614264552,1.15857805,3220.5,3220.4,42.40298]
[1737614267047,1.66537805,3220.5,3220.4,42.40298]
[1737614269553,0.5068,3220.5,3220.4,42.40298]
[1737614270052,1.15857805,3220.7,3220.6,0.62134]
[1737614270354,0.62127,3221.0,3220.8,0.6213]
[1737614270355,1.15857805,3220.9,3220.8,0.6213]
[1737614275353,1.15857805,3221.3,3221.2,0.62121]
[1737614275564,0.62119,3221.4,3221.3,0.62119]
[1737614275761,1.15857805,3221.4,3221.3,0.62119]
[1737614275959,1.15857805,3221.4,3221.3,41.42119]
[1737614276668,1.77976805,3221.4,3221.3,41.42119]
[1737614278365,1.15857805,3221.4,3221.3,41.42119]
[1737614283474,0.502,3221.6,3221.3,40.8]
[1737614283672,0.502,3221.6,3221.5,0.62117]
[1737614283872,1.66057805,3221.6,3221.5,0.62117]
[1737614285075,1.66057805,3221.6,3221.4,0.9996]
[1737614285269,1.66057805,3221.6,3221.4,0.5213]
[1737614285576,1.66057805,3221.6,3221.3,40.8]
[1737614285779,2.44624963,3221.5,3221.3,40.8]
[1737614285976,0.53,3221.4,3221.3,40.8]
[1737614286479,1.0276,3221.4,3221.3,40.8]
[1737614286976,1.0276,3221.4,3221.3,41.42121]
[1737614287784,0.53,3221.4,3221.3,41.42121]
[1737614290087,3.06742963,3221.5,3221.4,0.62119]
[1737614290280,2.44624963,3221.5,3221.3,40.8]
[1737614290476,3.06741963,3221.5,3221.4,0.62119]
[1737614290685,3.06741963,3221.5,3221.3,41.42119]
[1737614291185,0.62119,3221.4,3221.3,40.8]
[1737614291382,3.06742963,3221.5,3221.3,41.42119]
[1737614291891,3.06736963,3221.8,3221.6,0.62113]
[1737614292188,1.12323,3221.7,3221.6,0.62113]
[1737614292477,0.5021,3221.7,3221.3,40.8]
[1737614292683,1.12324,3221.7,3221.6,0.62115]
[1737614293079,0.5021,3221.7,3221.3,40.8]
[1737614293485,1.12323,3221.7,3221.6,0.62115]
[1737614294787,1.12324,3221.7,3221.6,0.62115]
[1737614295387,0.5021,3221.7,3221.6,0.62115]
[1737614296189,1.12323,3221.7,3221.6,0.62115]
[1737614296491,0.5021,3221.7,3221.6,0.62115]
[1737614296988,1.12323,3221.7,3221.6,0.62115]
[1737614297388,0.5021,3221.7,3221.6,0.62115]
[1737614302284,0.5021,3221.7,3221.6,1.13045]
[1737614305786,1.65982337,3221.7,3221.6,1.13045]
[1737614309093,1.65982337,3221.7,3221.6,0.62115]
[1737614309390,0.62115,3221.6,3221.5,3.82896]
[1737614311283,2.28095337,3221.7,3221.6,0.62115]
[1737614312190,1.65982337,3221.7,3221.6,0.62115]
[1737614312388,1.67992337,3221.9,3221.5,3.2078]
[1737614312696,0.00465528,3222.1,3221.8,1.15772337]
[1737614312891,0.00465528,3222.1,3222.0,41.42107]
[1737614314593,1.16237865,3222.1,3222.0,41.42107]
[1737614314789,1.78342865,3222.1,3222.0,40.8]
[1737614315693,0.62570528,3222.1,3222.0,40.8]
[1737614317505,0.00465528,3222.1,3222.0,40.8]
[1737614317800,0.00465528,3222.1,3222.0,41.42107]
[1737614326809,0.62570528,3222.1,3222.0,40.8]
[1737614333307,0.00465528,3222.1,3222.0,41.42107]
[1737614334505,0.00465528,3222.1,3222.0,40.8]
[1737614334715,0.62570528,3222.1,3222.0,40.8]
[1737614336922,0.67476952,3222.1,3222.0,40.8]
[1737614338009,4.72914756,3222.1,3222.0,40.8]
[1737614338211,5.14011068,3222.1,3222.0,40.8]
[1737614340315,5.09104644,3222.1,3222.0,40.8]
[1737614340611,5.14011201,3222.1,3222.0,40.8]
[1737614342113,8.34791201,3222.1,3222.0,40.8]
[1737614343014,8.34791335,3222.1,3222.0,40.8]
[1737614343220,13.34791335,3222.1,3222.0,40.8]
[1737614343616,13.34791335,3222.1,3221.1,3.2078]
[1737614343617,12.72686335,3222.1,3221.1,3.2078]
[1737614343825,1.77945793,3221.2,3221.1,3.2078]
[1737614344323,1.77945793,3221.2,3221.1,44.0078]
[1737614345426,1.77945793,3221.2,3221.1,40.8]
[1737614345722,3.06830073,3221.2,3221.1,40.8]
[1737614348917,7.21367401,3221.2,3221.1,40.8]
[1737614349527,7.62400944,3221.2,3221.1,40.8]
[1737614349826,7.62401266,3221.2,3221.1,40.8]
[1737614350027,0.62134,3220.6,3220.5,3.7054]
[1737614350326,3.06842073,3220.6,3220.5,3.7054]
[1737614350626,3.06842073,3220.6,3220.5,44.5054]
[1737614351223,3.06848073,3220.6,3220.5,44.5054]
[1737614353717,3.06848073,3220.6,3220.5,44.0078]
[1737614354322,6.27628073,3220.6,3220.5,40.8]
[1737614356533,3.06848073,3220.6,3220.5,40.8]
[1737614361236,2.44708073,3220.6,3220.5,41.42137]
[1737614361429,3.06843073,3220.6,3220.5,40.8]
[1737614362637,2.44708073,3220.6,3220.5,40.8]
[1737614363333,3.06843073,3220.6,3220.5,40.8]
[1737614366135,0.62135,3220.6,3220.5,40.8]
[1737614366727,3.06843073,3220.6,3220.5,40.8]
[1737614375735,1.77996075,3220.6,3220.5,40.8]
[1737614376442,0.62158,3219.5,3219.2,3.82942]
[1737614376745,1.15861075,3219.3,3219.2,3.7082]
[1737614376946,1.78022075,3219.3,3219.2,3.7082]
[1737614377343,1.78022075,3219.3,3219.2,44.5082]
[1737614378535,2.3172215,3219.3,3218.9,0.00310106]
[1737614378741,2.9388815,3219.0,3218.9,0.00310106]
[1737614379646,3.0720753,3219.0,3218.9,0.00310106]
[1737614380347,7.18821261,3219.0,3218.9,0.00310106]
[1737614388136,6.56655261,3219.0,3218.9,0.00310106]
[1737614388438,2.95,3219.1,3218.9,0.00310106]
[1737614388439,2.95,3219.1,3219.0,0.62166]
[1737614388941,2.95,3219.1,3219.0,41.42166]
[1737614391044,6.2798253,3219.3,3219.0,41.42166]
[1737614391440,5.6582153,3219.3,3219.0,40.8]
[1737614391642,0.62164,3219.2,3219.0,40.8]
[1737614393353,0.62164,3219.1,3219.0,40.8]
[1737614394545,4.60616579,3219.1,3219.0,40.8]
[1737614395047,4.65527037,3219.1,3219.0,40.8]
[1737614395446,4.65527102,3219.1,3219.0,40.8]
[1737614397844,4.60616579,3219.1,3219.0,40.8]
[1737614398044,0.62164,3219.1,3219.0,40.8]
[1737614398441,0.62164,3219.1,3219.0,41.2785]
[1737614398848,0.62164,3219.1,3219.0,40.8]
[1737614401149,4.58982045,3219.1,3219.0,40.8]
[1737614401752,4.6389352,3219.1,3219.0,40.8]
[1737614403054,5.51721296,3219.1,3219.0,40.8]
[1737614403260,5.51722009,3219.1,3219.0,40.8]
[1737614404661,0.62166,3219.0,3218.9,0.00310106]
[1737614404851,4.52077695,3219.0,3218.9,0.00310106]
[1737614405051,8.56154178,3219.0,3218.9,0.00310106]
[1737614405455,8.56154121,3219.0,3218.9,0.00310106]
[1737614405649,8.56154121,3219.0,3218.9,40.80310106]
[1737614406761,8.5615348,3219.0,3218.9,40.80310106]
[1737614408163,8.5615348,3219.0,3218.9,0.00310106]
[1737614408657,8.5615348,3219.0,3218.9,40.80310106]
[1737614411655,8.56153069,3219.0,3218.9,40.80310106]
[1737614413350,8.56153256,3219.0,3218.9,40.80310106]
[1737614415059,8.56153189,3219.0,3218.9,40.80310106]
[1737614418467,2.17592,3218.9,3218.2,0.531]
[1737614418764,3.0722153,3218.3,3218.2,0.531]
[1737614419464,3.0722153,3218.3,3218.2,41.331]
[1737614420769,2.4504153,3218.3,3218.2,41.331]
[1737614420963,3.0722153,3218.3,3218.2,41.331]
[1737614424064,3.54135443,3218.3,3218.2,41.331]
[1737614424269,7.92189267,3218.3,3218.2,41.331]
[1737614424467,12.34919831,3218.3,3217.4,3.2078]
[1737614424773,0.62205,3217.0,3216.9,3.2078]
[1737614424970,0.62205,3217.0,3216.9,44.0078]
[1737614426260,0.62205,3217.0,3216.9,44.5309]
[1737614426573,5.6582153,3217.0,3216.1,5.09579082]
[1737614426772,2.4504153,3216.2,3216.1,4.85327756]
[1737614427171,2.4504153,3216.2,3216.1,45.65327756]
[1737614427872,3.0726153,3216.2,3216.1,45.65327756]
[1737614428578,3.0726153,3216.2,3216.1,40.8]
[1737614428875,6.2804153,3216.2,3216.1,40.8]
[1737614429968,6.32948396,3216.2,3216.1,40.8]
[1737614430167,6.32948211,3216.2,3216.1,40.8]
[1737614430367,10.24307307,3216.2,3216.1,40.8]
[1737614430566,12.12035553,3216.2,3215.6,0.5234]
[1737614430878,3.0727153,3215.7,3215.6,0.5234]
[1737614431278,7.10382997,3215.7,3215.6,0.5234]
[1737614432877,2.4504153,3215.7,3215.6,0.5234]
[1737614433482,2.4504153,3215.7,3215.6,41.3234]
[1737614434177,3.0727153,3215.7,3215.6,40.8]
[1737614437782,2.4504153,3215.7,3215.6,40.8]
[1737614438875,3.0727153,3215.7,3215.6,40.8]
[1737614448784,2.4504153,3215.7,3215.6,40.8]
[1737614449181,2.4504153,3215.7,3215.6,41.4223]
[1737614450387,2.4504153,3215.7,3215.6,40.8]
[1737614450586,2.4504153,3215.7,3215.6,41.42232]
[1737614451288,3.0727153,3215.7,3215.6,41.42232]
[1737614451587,2.4504153,3215.7,3215.6,41.42232]
[1737614451989,3.0727153,3215.7,3215.6,41.42232]
[1737614452484,2.4504153,3215.7,3215.6,41.42232]
[1737614456490,3.0727153,3215.7,3215.6,41.42232]
[1737614457493,2.4504153,3215.7,3215.6,41.42232]
[1737614460498,2.4504153,3215.7,3215.6,40.8]
[1737614460702,3.0727153,3215.7,3215.6,40.8]
[1737614462103,3.54244011,3215.7,3215.6,40.8]
[1737614462292,3.5425308,3215.7,3215.6,40.8]
[1737614462901,3.0727153,3215.7,3215.6,40.8]
[1737614464098,3.0727153,3215.7,3215.6,41.42232]
[1737614464301,3.0727153,3215.7,3215.6,40.8]
[1737614464598,3.2078,3215.8,3215.7,0.6223]
[1737614465001,3.2078,3215.8,3215.7,1.1251]
[1737614466202,3.2078,3215.8,3215.7,0.6223]
[1737614466404,3.83008,3215.8,3215.7,0.6223]
[1737614466605,3.2078,3215.8,3215.7,0.6223]
[1737614476711,3.0726753,3216.0,3215.7,0.6223]
[1737614476918,3.0726753,3216.0,3215.8,1.10926]
[1737614477717,3.0726753,3216.0,3215.8,0.487]
[1737614478020,3.0726753,3216.0,3215.9,0.62226]
[1737614479116,2.4504153,3216.0,3215.9,0.62226]
[1737614479315,0.5034,3216.1,3216.0,0.62224]
[1737614479619,3.0725453,3216.6,3216.5,0.62214]
[1737614480017,3.0725453,3216.6,3216.5,41.42214]
[1737614480714,3.0725453,3216.6,3216.5,40.8]
[1737614482816,3.5824453,3216.6,3216.5,40.8]
[1737614483925,0.62224,3216.0,3215.9,0.62225]
[1737614484424,0.62224,3216.0,3215.9,41.42225]
[1737614484625,1.14284,3216.0,3215.9,41.42225]
[1737614484816,1.62804,3216.0,3215.9,41.42225]
[1737614485414,1.62804,3216.0,3215.9,40.8]
[1737614485622,2.13184,3216.0,3215.9,40.8]
[1737614487626,3.0725653,3216.5,3216.3,0.62217]
[1737614487827,1.5147,3216.4,3215.9,40.8]
[1737614488027,1.5147,3216.4,3216.3,0.62218]
[1737614488324,2.13686,3216.4,3216.3,0.62218]